bitfinex-derivatives/quotes_BTCF0:USTF0_20240913
["timestamp","ask_amount","ask_price","bid_price","bid_amount"]
[1726265282786,0.082816,60335.0,60333.0,0.001]
[1726265283294,0.082827,60328.0,60326.0,0.082827]
[1726265283684,0.082818,60334.0,60325.0,0.00480528]
[1726265283899,0.082826,60329.0,60325.0,0.08283]
[1726265284095,0.082827,60328.0,60326.0,0.082828]
[1726265284489,0.3608,60334.0,60333.0,0.001]
[1726265284689,0.443618,60334.0,60333.0,0.001]
[1726265285989,0.443618,60334.0,60329.0,0.082823]
[1726265285990,0.3608,60334.0,60329.0,0.082823]
[1726265286588,0.455618,60334.0,60333.0,0.001]
[1726265287188,0.082823,60330.0,60329.0,0.083823]
[1726265287399,0.165646,60330.0,60329.0,0.001]
[1726265288696,0.08283,60325.0,60324.0,0.082831]
[1726265289597,0.082823,60330.0,60327.0,0.082827]
[1726265289598,0.007,60330.0,60327.0,0.082827]
[1726265290002,0.002,60325.0,60323.0,0.443632]
[1726265290302,0.082831,60324.0,60323.0,0.443632]
[1726265290793,0.082835,60322.0,60318.0,0.082838]
[1726265290993,0.3608,60327.0,60318.0,0.082838]
[1726265290994,0.082829,60326.0,60318.0,0.082838]
[1726265291303,0.082843,60316.0,60313.0,0.08763291]
[1726265291492,0.082829,60326.0,60313.0,0.082846]
[1726265291687,0.082844,60315.0,60314.0,0.082845]
[1726265291891,0.082829,60326.0,60312.0,0.36563904]
[1726265292097,0.3608,60327.0,60323.0,0.004]
[1726265292502,0.082832,60324.0,60322.0,0.082833]
[1726265292804,0.08383,60326.0,60324.0,0.082831]
[1726265293004,0.08283,60325.0,60324.0,0.082831]
[1726265295209,0.082833,60323.0,60322.0,0.003]
[1726265295799,0.082837,60320.0,60319.0,0.0956]
[1726265296713,0.082846,60313.0,60306.0,0.3608]
[1726265297100,0.082846,60313.0,60307.0,0.00460931]
[1726265298797,0.082846,60313.0,60307.0,0.08746431]
[1726265299401,0.083846,60313.0,60312.0,0.3748]
[1726265302411,0.001,60313.0,60312.0,0.457648]
[1726265303121,0.083846,60313.0,60312.0,0.457648]
[1726265305904,0.083846,60313.0,60312.0,0.3748]
[1726265307704,0.166692,60313.0,60312.0,0.3748]
[1726265309397,0.249538,60313.0,60312.0,0.3748]
[1726265309597,0.249538,60313.0,60306.0,0.3608]
[1726265309598,0.082853,60309.0,60304.0,0.05437319]
[1726265309799,0.08286,60303.0,60295.0,0.3608]
[1726265310105,0.08286,60303.0,60295.0,0.4143]
[1726265310304,0.08287,60296.0,60295.0,0.4143]
[1726265310506,0.08287,60296.0,60295.0,0.3608]
[1726265311006,0.08287,60296.0,60295.0,0.3748]
[1726265312007,0.08287,60296.0,60295.0,0.014]
[1726265312599,0.080874,60293.0,60292.0,0.0007725]
[1726265318813,0.163748,60293.0,60292.0,0.0007725]
[1726265323008,0.3608,60317.0,60292.0,1.0983325]
[1726265323316,0.001,60321.0,60311.0,0.3608]
[1726265323317,0.082848,60312.0,60311.0,0.3608]
[1726265324020,0.082848,60312.0,60309.0,0.082851]
[1726265324228,0.08285,60311.0,60309.0,0.082851]
[1726265325423,0.3608,60329.0,60310.0,0.85824]
[1726265325722,0.3608,60329.0,60319.0,0.3608]
[1726265325723,0.082832,60324.0,60319.0,0.3608]
[1726265326230,0.3608,60329.0,60319.0,0.3608]
[1726265327321,0.082832,60324.0,60319.0,0.3608]
[1726265327627,0.082828,60327.0,60321.0,0.082835]
[1726265328016,0.082828,60327.0,60322.0,0.0508]
[1726265328417,0.082828,60327.0,60323.0,0.1067]
[1726265328829,0.082828,60327.0,60323.0,0.0567]
[1726265329326,0.082828,60327.0,60323.0,0.139532]
[1726265329936,0.007,60329.0,60326.0,0.443627]
[1726265330147,0.004,60327.0,60326.0,0.443627]
[1726265330533,0.051,60342.0,60326.0,0.443627]
[1726265330534,0.082826,60329.0,60326.0,0.3608]
[1726265330741,0.011,60327.0,60326.0,0.3608]
[1726265331240,0.093827,60327.0,60326.0,0.3608]
[1726265331739,0.001,60336.0,60326.0,1.45808]
[1726265331937,0.001,60343.0,60338.0,0.082812]
[1726265332124,0.083806,60343.0,60341.0,0.3608]
[1726265332434,0.082806,60343.0,60341.0,0.3608]
[1726265332626,0.082799,60348.0,60341.0,0.3608]
[1726265333031,0.082799,60348.0,60342.0,0.0516]
[1726265333435,0.082799,60348.0,60342.0,0.134407]
[1726265333436,0.014,60343.0,60342.0,0.134407]
[1726265334538,0.0828,60347.0,60342.0,0.134407]
[1726265335233,0.082804,60344.0,60342.0,0.0516]
[1726265335435,0.014,60348.0,60336.0,0.1036]
[1726265335637,0.082808,60342.0,60337.0,0.082813]
[1726265336235,0.082808,60342.0,60336.0,0.1036]
[1726265336236,0.082808,60342.0,60339.0,0.3608]
[1726265336849,0.014,60343.0,60340.0,0.082808]
[1726265337035,0.014,60343.0,60341.0,0.082808]
[1726265337234,0.082801,60346.0,60341.0,0.082808]
[1726265337436,0.014,60342.0,60341.0,0.082808]
[1726265337935,0.014,60343.0,60341.0,0.082808]
[1726265339643,0.082804,60344.0,60339.0,0.3608]
[1726265339844,0.082804,60344.0,60343.0,0.082805]
[1726265340846,0.082806,60343.0,60341.0,0.001]
[1726265341043,0.082806,60343.0,60340.0,0.082808]
[1726265341450,0.082806,60343.0,60341.0,0.082807]
[1726265341935,0.082806,60343.0,60342.0,0.082807]
[1726265342134,0.096806,60343.0,60342.0,0.082807]
[1726265342338,0.014,60343.0,60342.0,0.082807]
[1726265342748,0.3608,60362.0,60342.0,1.09716]
[1726265342941,0.3608,60369.0,60361.0,0.3608]
[1726265343145,0.3608,60369.0,60362.0,0.054]
[1726265343346,0.3608,60369.0,60362.0,0.136778]
[1726265343548,0.3608,60369.0,60362.0,0.054]
[1726265343549,0.082777,60364.0,60362.0,0.054]
[1726265344257,0.082777,60364.0,60362.0,0.055]
[1726265344548,0.3748,60369.0,60363.0,0.082778]
[1726265344549,0.082773,60367.0,60363.0,0.082778]
[1726265344942,0.014,60364.0,60363.0,0.082778]
[1726265345745,0.014,60364.0,60363.0,0.08747527]
[1726265345945,0.014,60364.0,60363.0,0.14237527]
[1726265346156,0.014,60364.0,60363.0,0.50317527]
[1726265346848,0.3608,60379.0,60363.0,1.51839727]
[1726265347043,0.3608,60379.0,60370.0,0.3608]
[1726265348055,0.082754,60381.0,60370.0,0.3608]
[1726265348254,0.06322604,60398.0,60377.0,0.3608]
[1726265348448,0.443542,60390.0,60383.0,0.082749]
[1726265348759,0.443542,60390.0,60384.0,0.082749]
[1726265348952,0.082735,60394.0,60382.0,0.3608]
[1726265349141,0.3608,60399.0,60388.0,0.3608]
[1726265349746,0.3618,60405.0,60401.0,0.082725]
[1726265349947,0.3608,60405.0,60401.0,0.082725]
[1726265350149,0.3608,60405.0,60397.0,0.1049]
[1726265350451,0.3608,60405.0,60400.0,0.082726]
[1726265350655,0.3608,60405.0,60401.0,0.082725]
[1726265350960,0.082729,60399.0,60396.0,0.3608]
[1726265351154,0.3608,60405.0,60401.0,0.001]
[1726265351372,0.082724,60402.0,60401.0,0.001]
[1726265351574,0.662128,60402.0,60383.0,0.0039]
[1726265351748,0.082749,60384.0,60381.0,0.3608]
[1726265352144,0.3608,60398.0,60381.0,0.3608]
[1726265352350,0.082749,60384.0,60381.0,0.3608]
[1726265352563,0.3608,60398.0,60381.0,0.3608]
[1726265352861,0.082751,60383.0,60381.0,0.3608]
[1726265353462,0.082751,60383.0,60381.0,0.3618]
[1726265353956,0.082751,60383.0,60381.0,0.3608]
[1726265354274,0.083751,60383.0,60381.0,0.3618]
[1726265355150,0.082752,60382.0,60381.0,0.3618]
[1726265355557,0.001,60383.0,60381.0,0.3618]
[1726265355855,0.001,60383.0,60382.0,0.082752]
[1726265356856,0.082752,60382.0,60381.0,0.3618]
[1726265357264,0.082774,60366.0,60363.0,0.3692]
[1726265357459,0.082755,60380.0,60363.0,0.3608]
[1726265357659,0.08276,60377.0,60370.0,0.3608]
[1726265357854,0.082763,60374.0,60371.0,0.082767]
[1726265358055,0.082763,60374.0,60370.0,0.3608]
[1726265358560,0.3608,60377.0,60372.0,0.082765]
[1726265358962,0.082762,60375.0,60372.0,0.082765]
[1726265359663,0.3608,60377.0,60370.0,0.3608]
[1726265360062,0.3608,60380.0,60372.0,0.001]
[1726265360264,0.082763,60375.0,60372.0,0.001]
[1726265360465,0.082764,60373.0,60372.0,0.001]
[1726265360662,0.082765,60373.0,60370.0,0.003]
[1726265360866,0.36184001,60375.0,60370.0,0.003]
[1726265360867,0.082766,60372.0,60370.0,0.003]
[1726265361362,0.082767,60371.0,60370.0,0.003]
[1726265362374,0.082775,60365.0,60363.0,0.3608]
[1726265362669,0.3608,60375.0,60363.0,0.3608]
[1726265362969,0.082776,60364.0,60363.0,0.3608]
[1726265363568,0.082776,60364.0,60363.0,0.3708]
[1726265363970,0.082776,60364.0,60363.0,0.3608]
[1726265364166,0.082776,60364.0,60363.0,0.3698]
[1726265365572,0.082776,60364.0,60363.0,0.3638]
[1726265366463,0.082776,60364.0,60363.0,0.007]
[1726265366669,0.526352,60364.0,60363.0,0.007]
[1726265366864,0.082778,60363.0,60351.0,0.186494]
[1726265367068,0.165552,60364.0,60363.0,0.003]
[1726265367373,0.609128,60364.0,60350.0,0.3608]
[1726265367575,0.082794,60351.0,60350.0,0.3608]
[1726265367868,0.082801,60347.0,60342.0,0.41284]
[1726265368174,0.082805,60343.0,60342.0,0.3608]
[1726265368370,0.3608,60350.0,60342.0,0.3608]
[1726265368673,0.3608,60350.0,60336.0,0.1059]
[1726265368674,0.3608,60345.0,60336.0,0.1059]
[1726265368868,0.3608,60345.0,60337.0,0.082822]
[1726265369075,0.3608,60350.0,60342.0,0.014]
[1726265369569,0.3608,60350.0,60342.0,0.005]
[1726265369776,0.082814,60343.0,60342.0,0.005]
[1726265370276,0.443614,60343.0,60342.0,0.005]
[1726265370579,0.082814,60343.0,60342.0,0.005]
[1726265370973,0.3608,60361.0,60342.0,0.005]
[1726265371279,0.082805,60350.0,60346.0,0.082809]
[1726265371579,0.082791,60360.0,60346.0,0.082809]
[1726265371877,0.082807,60348.0,60346.0,0.082809]
[1726265372464,0.082797,60355.0,60338.0,0.3608]
[1726265372670,0.3608,60356.0,60346.0,0.001]
[1726265373096,0.443608,60347.0,60346.0,0.001]
[1726265373375,0.082827,60334.0,60330.0,0.082831]
[1726265373576,0.082827,60334.0,60322.0,0.00527212]
[1726265373577,0.3608,60333.0,60326.0,0.4153]
[1726265374080,0.3193593,60333.0,60332.0,0.082829]
[1726265375587,0.3193593,60333.0,60326.0,0.138177]
[1726265375768,0.4860133,60333.0,60332.0,0.012]
[1726265375967,0.4860133,60333.0,60317.0,0.082849]
[1726265375968,0.082837,60326.0,60322.0,0.00077212]
[1726265376174,0.082838,60325.0,60322.0,0.00077212]
[1726265376775,0.068838,60325.0,60322.0,0.00077212]
[1726265377671,0.3608,60328.0,60322.0,0.08361412]
[1726265378081,0.082839,60325.0,60322.0,0.00077212]
[1726265378274,0.08284,60324.0,60322.0,0.00077212]
[1726265378471,0.082841,60323.0,60322.0,0.00077212]
[1726265379073,0.443641,60323.0,60322.0,0.00077212]
[1726265380681,0.526482,60323.0,60322.0,0.00077212]
[1726265382484,0.443641,60323.0,60322.0,0.00077212]
[1726265382681,0.3608,60323.0,60322.0,0.08361412]
[1726265382983,0.3618,60328.0,60327.0,0.082836]
[1726265383183,0.3608,60328.0,60327.0,0.082836]
[1726265384080,0.443634,60328.0,60322.0,0.00077212]
[1726265384388,0.082841,60323.0,60322.0,0.00077212]
[1726265385380,0.443641,60323.0,60322.0,0.00077212]
[1726265386776,0.082847,60319.0,60318.0,0.00100621]
[1726265387787,0.083847,60319.0,60318.0,0.00100621]
[1726265388878,0.001,60319.0,60318.0,0.08385421]
[1726265396584,0.165688,60322.0,60319.0,6.19e-06]
[1726265396912,0.082843,60322.0,60321.0,0.082844]
[1726265397586,0.082843,60322.0,60319.0,6.19e-06]
[1726265397587,0.082845,60320.0,60319.0,6.19e-06]
[1726265398284,0.082845,60320.0,60319.0,0.08285319]
[1726265400302,0.16569,60320.0,60319.0,6.19e-06]
[1726265400681,0.16669,60320.0,60319.0,6.19e-06]
[1726265401991,0.083845,60320.0,60319.0,6.19e-06]
[1726265402488,0.66405,60320.0,60319.0,6.19e-06]
[1726265403681,1.26405,60320.0,60319.0,6.19e-06]
[1726265404096,1.181205,60320.0,60319.0,6.19e-06]
[1726265404395,0.083845,60320.0,60319.0,6.19e-06]
[1726265405796,0.083845,60320.0,60319.0,0.04944859]
[1726265406182,0.083845,60320.0,60319.0,0.06576131]
[1726265406593,0.083845,60320.0,60319.0,6.19e-06]
[1726265406989,0.001,60320.0,60319.0,6.19e-06]
[1726265407194,0.001,60320.0,60319.0,0.08285319]
[1726265407584,0.001,60320.0,60319.0,0.16504709]
[1726265408594,0.001,60320.0,60319.0,0.08285319]
[1726265408888,0.001,60320.0,60319.0,0.29129945]
[1726265409292,0.001,60320.0,60319.0,0.16504709]
[1726265410307,0.001,60320.0,60319.0,0.08285319]
[1726265418209,0.083845,60320.0,60319.0,6.19e-06]
[1726265421106,0.21549,60320.0,60319.0,6.19e-06]
[1726265422717,1.31285,60320.0,60319.0,6.19e-06]
[1726265423412,1.395695,60320.0,60319.0,6.19e-06]
[1726265424800,1.396695,60320.0,60319.0,6.19e-06]
[1726265424999,1.396695,60320.0,60306.0,0.04950848]
[1726265425307,0.526526,60307.0,60306.0,0.04950848]
[1726265425811,0.578326,60307.0,60306.0,0.04950848]
[1726265426198,0.443663,60307.0,60306.0,0.04950848]
[1726265427400,0.444663,60307.0,60306.0,0.04950848]
[1726265427602,0.444663,60307.0,60305.0,0.082865]
[1726265428411,0.082864,60306.0,60305.0,0.082865]
[1726265429103,0.3618,60307.0,60303.0,0.048]
[1726265429104,0.3618,60307.0,60306.0,0.082864]
[1726265430313,0.3618,60307.0,60303.0,0.048]
[1726265430611,0.082867,60304.0,60303.0,0.048]
[1726265430916,0.443663,60307.0,60303.0,0.130869]
[1726265431107,0.001,60306.0,60303.0,0.130869]
[1726265431324,0.001,60306.0,60303.0,0.048]
[1726265431616,0.08287,60303.0,60301.0,0.082871]
[1726265431799,0.3618,60307.0,60301.0,0.082871]
[1726265432312,0.082874,60300.0,60297.0,0.082876]
[1726265432711,0.082874,60300.0,60298.0,0.082875]
[1726265432897,0.082874,60299.0,60298.0,0.082875]
[1726265433210,0.082877,60297.0,60296.0,0.0484]
[1726265433604,0.082877,60297.0,60296.0,0.131278]
[1726265434106,0.082872,60301.0,60297.0,0.082876]
[1726265434305,0.4092,60305.0,60297.0,0.082876]
[1726265434502,0.4092,60305.0,60296.0,0.0484]
[1726265434503,0.3608,60305.0,60296.0,0.0484]
[1726265434718,0.3608,60305.0,60303.0,0.082868]
[1726265434905,0.08287,60302.0,60300.0,0.082872]
[1726265435102,0.3608,60305.0,60296.0,0.0484]
[1726265435311,0.083864,60306.0,60302.0,0.3608]
[1726265435615,0.082869,60303.0,60301.0,0.082871]
[1726265435812,0.083865,60306.0,60298.0,0.3608]
[1726265436010,0.443658,60311.0,60308.0,0.082861]
[1726265436316,0.082859,60310.0,60308.0,0.082861]
[1726265436801,0.3608,60311.0,60308.0,0.082861]
[1726265437005,0.08286,60309.0,60308.0,0.082861]
[1726265437314,0.082856,60313.0,60300.0,0.082872]
[1726265437506,0.082856,60313.0,60303.0,0.3608]
[1726265438011,0.082856,60313.0,60308.0,0.3608]
[1726265438211,0.443653,60314.0,60303.0,0.082867]
[1726265438515,0.45204068,60314.0,60302.0,0.3608]
[1726265438712,0.45204068,60314.0,60306.0,0.082864]
[1726265438907,0.001,60313.0,60306.0,0.082864]
[1726265439311,0.082863,60308.0,60306.0,0.082864]
[1726265439509,0.001,60313.0,60302.0,0.443669]
[1726265439716,0.082864,60306.0,60303.0,0.082869]
[1726265440113,0.082858,60311.0,60307.0,0.082862]
[1726265440309,0.082858,60311.0,60302.0,0.3608]
[1726265441210,0.3618,60314.0,60311.0,0.082856]
[1726265441411,0.3618,60314.0,60302.0,0.3608]
[1726265441614,0.3618,60314.0,60308.0,0.3608]
[1726265441808,0.3618,60314.0,60309.0,0.0509]
[1726265442014,0.3618,60314.0,60313.0,0.082855]
[1726265442311,0.3608,60319.0,60318.0,0.082848]
[1726265442706,0.3608,60319.0,60309.0,0.0998]
[1726265442707,0.3608,60319.0,60313.0,0.082854]
[1726265442915,0.082852,60315.0,60312.0,0.082856]
[1726265443110,0.082852,60315.0,60309.0,0.0998]
[1726265443312,0.082852,60315.0,60314.0,0.082853]
[1726265444508,0.082846,60320.0,60318.0,0.082848]
[1726265445419,0.082846,60320.0,60319.0,0.082847]
[1726265445621,0.083846,60320.0,60319.0,0.082847]
[1726265447826,0.084846,60320.0,60319.0,0.082847]
[1726265450224,0.082849,60317.0,60315.0,0.0489]
[1726265451123,0.082849,60317.0,60316.0,0.08285]
[1726265453616,0.082851,60316.0,60315.0,0.0489]
[1726265454315,0.082851,60316.0,60314.0,0.082853]
[1726265454316,0.082852,60315.0,60314.0,0.082853]
[1726265455115,0.082852,60315.0,60310.0,0.082858]
[1726265455319,0.082859,60310.0,60309.0,0.0489]
[1726265455919,0.082859,60310.0,60309.0,0.13176]
[1726265457127,0.082855,60313.0,60312.0,0.082856]
[1726265457427,0.001,60315.0,60309.0,0.0489]
[1726265457621,0.001,60315.0,60314.0,0.082853]
[1726265458021,0.082842,60322.0,60314.0,0.082853]
[1726265458214,0.082851,60317.0,60315.0,0.082852]
[1726265458421,0.082851,60317.0,60316.0,0.082851]
[1726265460319,0.082846,60320.0,60319.0,0.082846]
[1726265460520,0.082846,60320.0,60319.0,0.443646]
[1726265460716,0.443646,60320.0,60308.0,0.3608]
[1726265460916,0.082852,60316.0,60314.0,0.082853]
[1726265461517,0.082852,60316.0,60309.0,0.0991]
[1726265462425,0.082852,60316.0,60314.0,0.082853]
[1726265463629,0.083852,60316.0,60314.0,0.082853]
[1726265464018,0.082852,60316.0,60314.0,0.082853]
[1726265464727,0.082852,60315.0,60314.0,0.082853]
[1726265465736,0.08286,60309.0,60308.0,0.00084]
[1726265466033,0.082863,60307.0,60302.0,0.04964926]
[1726265466228,0.082863,60307.0,60306.0,0.082864]
[1726265467629,0.082863,60307.0,60300.0,0.0478]
[1726265467630,0.082867,60304.0,60303.0,0.443668]
[1726265468130,0.082871,60301.0,60300.0,0.0478]
[1726265468336,0.082871,60301.0,60300.0,0.082873]
[1726265468632,0.082874,60299.0,60298.0,0.0489]
[1726265468930,0.082875,60298.0,60296.0,0.082878]
[1726265469143,0.3608,60305.0,60296.0,0.082878]
[1726265469144,0.082867,60304.0,60296.0,0.082878]
[1726265469333,0.082877,60297.0,60296.0,0.082878]
[1726265471824,0.083877,60297.0,60296.0,0.082878]
[1726265474540,0.001,60297.0,60296.0,0.082878]
[1726265475039,0.3608,60314.0,60296.0,1.09756]
[1726265475239,0.3608,60319.0,60307.0,0.3608]
[1726265475447,0.3608,60319.0,60314.0,0.082853]
[1726265475448,0.08285,60317.0,60314.0,0.082853]
[1726265475628,0.08285,60317.0,60308.0,0.1494]
[1726265475831,0.3608,60319.0,60309.0,0.08286]
[1726265476148,0.3608,60319.0,60308.0,0.1494]
[1726265476149,0.08285,60317.0,60308.0,0.1494]
[1726265476341,0.08285,60317.0,60315.0,0.082851]
[1726265476540,0.3608,60319.0,60308.0,0.1494]
[1726265476741,0.3608,60319.0,60316.0,0.08285]
[1726265477741,0.3618,60319.0,60316.0,0.08285]
[1726265478042,0.3608,60319.0,60318.0,0.082848]
[1726265478349,0.0521,60323.0,60319.0,0.082845]
[1726265479239,0.134941,60323.0,60319.0,0.082845]
[1726265480547,0.082843,60322.0,60319.0,0.082845]
[1726265481245,0.082844,60321.0,60319.0,0.082845]
[1726265482039,0.082844,60321.0,60315.0,0.0047424]
[1726265482040,0.082844,60321.0,60317.0,0.3608]
[1726265483361,0.082844,60321.0,60320.0,0.082845]
[1726265484258,0.084844,60321.0,60320.0,0.082845]
[1726265484862,0.085844,60321.0,60320.0,0.082845]
[1726265488964,0.082855,60314.0,60313.0,0.08757837]
[1726265490366,0.003,60321.0,60316.0,0.08285]
[1726265491272,0.082849,60317.0,60316.0,0.08285]
[1726265492674,0.082849,60317.0,60311.0,0.3608]
[1726265492675,0.3608,60323.0,60312.0,0.082856]
[1726265492859,0.3608,60315.0,60302.0,0.1511]
[1726265493164,0.08286,60311.0,60310.0,0.082858]
[1726265494369,0.082853,60315.0,60314.0,0.082852]
[1726265495070,0.082848,60318.0,60311.0,0.3608]
[1726265496870,0.0039,60338.0,60317.0,0.3608]
[1726265496871,0.3608,60329.0,60317.0,0.3608]
[1726265497063,0.3608,60329.0,60322.0,0.3608]
[1726265497293,0.00472254,60337.0,60328.0,0.3608]
[1726265497463,0.00472254,60337.0,60336.0,0.082823]
[1726265497768,0.082821,60338.0,60336.0,0.082823]
[1726265498577,0.082821,60338.0,60337.0,0.049]
[1726265499080,0.096821,60338.0,60337.0,0.049]
[1726265499370,0.014,60338.0,60337.0,0.131822]
[1726265500772,1.1112,60338.0,60328.0,0.3608]
[1726265500980,1.1112,60338.0,60321.0,0.3608]
[1726265500981,0.3608,60336.0,60324.0,0.082839]
[1726265501181,0.0528,60335.0,60324.0,0.082839]
[1726265501484,0.082832,60330.0,60327.0,0.082834]
[1726265502375,0.3608,60336.0,60326.0,0.3608]
[1726265502376,0.3678,60336.0,60326.0,0.3608]
[1726265502677,0.007,60336.0,60334.0,0.082826]
[1726265502872,0.082821,60338.0,60335.0,0.132425]
[1726265503073,0.49318535,60342.0,60335.0,0.0496]
[1726265503279,0.04056014,60341.0,60340.0,0.082818]
[1726265503468,0.04055733,60341.0,60340.0,0.082818]
[1726265503669,0.3608,60342.0,60340.0,0.082818]
[1726265503974,0.04055731,60341.0,60340.0,0.082818]
[1726265505376,0.05455731,60341.0,60340.0,0.082818]
[1726265505681,0.082827,60334.0,60333.0,0.082827]
[1726265506873,0.082828,60333.0,60329.0,0.00475674]
[1726265507072,0.082828,60333.0,60327.0,0.1007]
[1726265507275,0.13203343,60340.0,60331.0,0.082829]
[1726265507477,0.3608,60342.0,60327.0,0.1007]
[1726265507478,0.014,60334.0,60333.0,0.082827]
[1726265508176,0.082819,60340.0,60335.0,0.082824]
[1726265509280,0.082823,60336.0,60335.0,0.082824]
[1726265510074,0.082823,60336.0,60333.0,0.3608]
[1726265510075,0.082815,60343.0,60333.0,0.3608]
[1726265510277,0.00467974,60346.0,60335.0,0.082824]
[1726265510478,0.08281,60346.0,60333.0,0.3608]
[1726265510675,0.082819,60339.0,60337.0,0.082822]
[1726265511076,0.08282,60338.0,60337.0,0.082822]
[1726265511276,0.082825,60335.0,60333.0,0.443626]
[1726265511474,0.082826,60334.0,60333.0,0.443626]
[1726265512685,0.096826,60334.0,60333.0,0.443626]
[1726265515586,0.096826,60334.0,60333.0,0.082826]
[1726265517389,0.014,60334.0,60333.0,0.082826]
[1726265525290,0.08281,60346.0,60345.0,0.082809]
[1726265525496,0.12336291,60346.0,60345.0,0.443609]
[1726265526596,0.21484343,60346.0,60345.0,0.443609]
[1726265526897,0.04055268,60346.0,60345.0,0.3608]
[1726265527089,0.13236662,60346.0,60345.0,0.443611]
[1726265527287,0.05455268,60346.0,60345.0,0.444611]
[1726265527698,0.014,60346.0,60345.0,1.541731]
[1726265527899,0.014,60346.0,60345.0,1.624542]
[1726265528394,0.11577284,60353.0,60352.0,0.082801]
[1726265528696,0.11577284,60353.0,60345.0,1.540731]
[1726265528697,0.115687,60357.0,60351.0,0.3608]
[1726265528899,0.115687,60358.0,60357.0,0.082794]
[1726265529097,0.082786,60364.0,60357.0,0.1028]
[1726265529098,0.115687,60360.0,60357.0,0.1028]
[1726265529298,0.477487,60368.0,60359.0,0.082792]
[1726265529496,0.3608,60368.0,60364.0,0.082784]
[1726265530791,0.082783,60366.0,60363.0,0.3608]
[1726265531003,0.082783,60366.0,60364.0,0.001]
[1726265531194,0.37588,60368.0,60364.0,0.083785]
[1726265531389,0.3748,60368.0,60364.0,0.083785]
[1726265531993,0.3748,60368.0,60365.0,0.082783]
[1726265532495,0.3758,60368.0,60365.0,0.082783]
[1726265533104,0.45858,60368.0,60365.0,0.001]
[1726265534501,0.082781,60367.0,60365.0,0.001]
[1726265534702,0.082782,60366.0,60365.0,0.001]
[1726265534902,0.096782,60366.0,60365.0,0.001]
[1726265535407,0.082782,60366.0,60365.0,0.001]
[1726265535609,0.082782,60366.0,60365.0,0.002]
[1726265536201,0.096782,60366.0,60365.0,0.002]
[1726265536400,0.179564,60366.0,60365.0,0.002]
[1726265536701,0.082803,60351.0,60350.0,0.443603]
[1726265537901,0.08279,60361.0,60350.0,0.443603]
[1726265538099,0.08279,60361.0,60350.0,0.44841535]
[1726265538100,0.0828,60353.0,60350.0,0.44841535]
[1726265538502,0.0828,60353.0,60350.0,0.45141535]
[1726265538908,0.009,60351.0,60350.0,0.45241535]
[1726265539091,0.009,60351.0,60350.0,0.44941535]
[1726265539292,0.009,60351.0,60350.0,0.45141535]
[1726265539492,0.082802,60352.0,60350.0,0.45241535]
[1726265540315,0.094803,60351.0,60350.0,0.004]
[1726265540897,0.094803,60351.0,60350.0,0.003]
[1726265541103,0.104803,60351.0,60350.0,0.004]
[1726265544912,0.022,60351.0,60350.0,0.447604]
[1726265545117,0.00116,60363.0,60362.0,0.082788]
[1726265545316,0.3608,60367.0,60362.0,0.082788]
[1726265545317,0.082785,60364.0,60362.0,0.082788]
[1726265545613,0.082779,60368.0,60365.0,0.082783]
[1726265546227,0.0524,60372.0,60365.0,0.082783]
[1726265546515,0.08278,60368.0,60365.0,0.082783]
[1726265547103,0.08278,60368.0,60366.0,0.082781]
[1726265547516,0.11536223,60371.0,60365.0,0.00482609]
[1726265547708,0.19813723,60372.0,60362.0,0.002]
[1726265547910,0.007,60368.0,60367.0,0.3608]
[1726265548116,0.082782,60366.0,60365.0,0.002]
[1726265548507,0.082782,60366.0,60365.0,0.001]
[1726265548706,0.082782,60366.0,60363.0,0.082786]
[1726265549214,0.082785,60365.0,60363.0,0.082786]
[1726265549613,0.084775,60372.0,60364.0,0.082785]
[1726265549614,0.082775,60372.0,60364.0,0.082785]
[1726265550012,0.3608,60370.0,60364.0,0.082785]
[1726265550518,0.082782,60367.0,60364.0,0.082785]
[1726265550824,0.002,60366.0,60364.0,0.082785]
[1726265551321,0.082782,60367.0,60364.0,0.082785]
[1726265551816,0.082782,60366.0,60364.0,0.082785]
[1726265552611,0.082782,60366.0,60364.0,0.092785]
[1726265553310,0.083782,60366.0,60364.0,0.092785]
[1726265554215,0.083782,60366.0,60365.0,0.443583]
[1726265554415,0.083782,60366.0,60365.0,0.082783]
[1726265554621,0.001,60366.0,60365.0,0.132583]
[1726265554919,0.001,60366.0,60365.0,0.493383]
[1726265555416,0.001,60366.0,60365.0,0.502383]
[1726265556320,0.082781,60367.0,60366.0,0.082782]
[1726265556520,0.082781,60367.0,60365.0,0.4196]
[1726265556521,0.082776,60371.0,60365.0,0.42048]
[1726265556723,0.19813723,60372.0,60369.0,0.082777]
[1726265557427,0.082775,60372.0,60369.0,0.082777]
[1726265557815,0.19813723,60372.0,60369.0,0.082777]
[1726265558015,0.20413723,60372.0,60369.0,0.083777]
[1726265558216,0.082777,60370.0,60369.0,0.083777]
[1726265559019,0.082777,60370.0,60369.0,0.088777]
[1726265559926,0.088777,60370.0,60369.0,0.088777]
[1726265562119,0.12931443,60370.0,60369.0,0.088777]
[1726265562326,0.2209085,60370.0,60369.0,0.088777]
[1726265562518,0.26144593,60370.0,60369.0,0.088777]
[1726265562719,0.34422293,60370.0,60369.0,0.006]
[1726265562918,0.21209143,60370.0,60369.0,0.006]
[1726265563616,0.21209297,60370.0,60369.0,0.006]
[1726265566525,0.21209297,60370.0,60361.0,0.0562825]
[1726265566526,0.082788,60362.0,60361.0,0.0562825]